bitfinex/quotes_BTCUSD_20241202
["timestamp","ask_amount","ask_price","bid_price","bid_amount"]
[1733171573125,0.43509793,96116.0,96115.0,0.01146894]
[1733171573463,0.43509884,96116.0,96115.0,0.01147993]
[1733171573990,0.37636487,96116.0,96115.0,0.01147993]
[1733171576845,0.36139896,96116.0,96115.0,0.01147993]
[1733171577069,0.37636455,96116.0,96115.0,0.01147993]
[1733171578554,0.37636455,96116.0,96115.0,0.09287993]
[1733171578701,0.37636455,96116.0,96115.0,0.01147993]
[1733171579768,0.208094,96110.0,96109.0,0.00287339]
[1733171579937,0.37305959,96110.0,96109.0,0.00287339]
[1733171580978,0.15,96109.0,96108.0,0.0814]
[1733171581124,0.16496559,96109.0,96108.0,0.0814]
[1733171581325,0.416224,96102.0,96099.0,0.00173]
[1733171581528,0.00845881,96101.0,96100.0,0.00287339]
[1733171581966,0.01496616,96101.0,96100.0,0.00287339]
[1733171582376,0.00845881,96101.0,96100.0,0.00287339]
[1733171582611,0.00845962,96101.0,96100.0,0.00287339]
[1733171583913,0.01145962,96101.0,96100.0,0.00287339]
[1733171584234,0.01345962,96101.0,96100.0,0.00387339]
[1733171586665,0.16345962,96101.0,96100.0,0.00387339]
[1733171586860,0.24223838,96101.0,96100.0,0.001]
[1733171587111,0.34508359,96101.0,96100.0,0.001]
[1733171587285,0.4006913,96101.0,96100.0,0.001]
[1733171587623,0.40449976,96101.0,96100.0,0.001]
[1733171587868,0.40149976,96101.0,96100.0,0.001]
[1733171588073,0.40150223,96101.0,96100.0,0.001]
[1733171588227,0.39991649,96101.0,96100.0,0.002]
[1733171589023,0.39791649,96101.0,96100.0,0.001]
[1733171589350,0.16819252,96101.0,96100.0,0.01]
[1733171589550,0.16619252,96101.0,96100.0,0.009]
[1733171590029,0.1669698,96101.0,96100.0,0.018]
[1733171592174,0.16046119,96101.0,96100.0,0.018]
[1733171592807,0.208116,96100.0,96099.0,0.00460339]
[1733171593014,0.21657719,96100.0,96099.0,0.00460339]
[1733171593219,0.29505651,96100.0,96099.0,0.00173]
[1733171593420,0.30156456,96100.0,96099.0,0.00173]
[1733171593626,0.45156456,96100.0,96099.0,0.00173]
[1733171594254,0.45256456,96100.0,96099.0,0.01073]
[1733171594442,0.4553881,96100.0,96099.0,0.01073]
[1733171594570,0.45256456,96100.0,96099.0,0.01073]
[1733171594795,0.4553881,96100.0,96099.0,0.01073]
[1733171594998,0.45256456,96100.0,96099.0,0.01073]
[1733171595206,0.208144,96087.0,96086.0,0.0807]
[1733171595403,0.21660519,96087.0,96086.0,0.0807]
[1733171595630,0.21660519,96087.0,96078.0,0.0488654]
[1733171595631,0.208159,96080.0,96078.0,0.0008654]
[1733171595835,0.00846119,96079.0,96078.0,0.0008654]
[1733171596041,0.15846119,96079.0,96078.0,0.0008654]
[1733171596433,0.15846119,96079.0,96078.0,0.00104144]
[1733171596811,0.15846119,96079.0,96078.0,0.00204144]
[1733171597012,0.00846119,96079.0,96078.0,0.00204144]
[1733171597209,0.04612291,96079.0,96078.0,0.00204144]
[1733171597518,0.04612291,96079.0,96078.0,0.00304144]
[1733171597687,0.04612291,96079.0,96078.0,0.00204144]
[1733171597962,0.00946119,96079.0,96078.0,0.00204144]
[1733171598982,0.01846119,96079.0,96078.0,0.00304144]
[1733171599185,0.00846119,96079.0,96078.0,0.00104144]
[1733171599377,0.00946119,96079.0,96078.0,0.00204144]
[1733171599590,0.01846119,96079.0,96078.0,0.00304144]
[1733171600010,0.01746119,96079.0,96078.0,0.00204144]
[1733171600207,0.01846119,96079.0,96078.0,0.00304144]
[1733171601285,0.01846119,96079.0,96078.0,0.00591483]
[1733171601479,0.01846119,96079.0,96078.0,0.12821483]
[1733171601649,0.0132543,96079.0,96078.0,0.12821483]
[1733171602155,0.01,96079.0,96078.0,0.12821483]
[1733171603617,0.01,96079.0,96078.0,0.24388152]
[1733171603823,0.00273085,96113.0,96099.0,0.13157339]
[1733171604048,0.00650798,96108.0,96099.0,0.13157339]
[1733171604245,0.0032538,96107.0,96099.0,0.13157339]
[1733171604453,0.0032538,96106.0,96099.0,0.13157339]
[1733171604602,0.00845989,96105.0,96100.0,0.01315734]
[1733171604807,0.00845989,96104.0,96100.0,0.01315734]
[1733171605032,0.00845989,96103.0,96099.0,0.13157339]
[1733171605309,0.00650755,96114.0,96099.0,0.13157339]
[1733171605310,0.00845989,96102.0,96099.0,0.13157339]
[1733171605511,0.0032538,96101.0,96099.0,0.13157339]
[1733171605877,0.0032538,96100.0,96085.0,0.11841504]
[1733171605989,0.0032538,96099.0,96086.0,0.20567667]
[1733171606199,0.0032538,96098.0,96087.0,0.00184165]
[1733171606399,0.0032538,96098.0,96088.0,0.10284521]
[1733171606603,0.0032538,96098.0,96089.0,0.00184165]
[1733171606806,0.0032538,96097.0,96085.0,0.11841504]
[1733171607021,0.0807302,96116.0,96078.0,0.00104144]
[1733171607022,0.0032538,96096.0,96078.0,0.00104144]
[1733171607232,0.0032538,96095.0,96078.0,0.00104144]
[1733171607486,0.00846038,96094.0,96078.0,0.00104144]
[1733171607686,0.00846038,96093.0,96078.0,0.00104144]
[1733171607895,0.00846038,96092.0,96078.0,0.00104144]
[1733171608095,0.00846038,96091.0,96078.0,0.00104144]
[1733171608389,0.00846038,96090.0,96078.0,0.00104144]
[1733171608518,0.00846038,96089.0,96088.0,0.001]
[1733171608937,0.00846038,96089.0,96078.0,0.00104144]
[1733171609289,0.00846068,96088.0,96085.0,0.009]
[1733171609414,0.0032538,96087.0,96085.0,0.009]
[1733171609615,0.0032538,96086.0,96078.0,0.01004144]
[1733171609869,0.0032538,96085.0,96078.0,0.00104144]
[1733171610081,0.0032538,96084.0,96078.0,0.00104144]
[1733171610283,0.0032538,96083.0,96079.0,0.00184209]
[1733171610530,0.0032538,96082.0,96079.0,0.00184201]
[1733171610735,0.0032538,96081.0,96079.0,0.00184201]
[1733171610939,0.00520685,96097.0,96079.0,0.10468722]
[1733171611139,0.00846086,96096.0,96080.0,0.02144488]
[1733171611353,0.00325401,96095.0,96080.0,0.00184201]
[1733171611547,0.00325401,96094.0,96080.0,0.00184201]
[1733171611712,0.00325401,96093.0,96080.0,0.00184201]
[1733171611887,0.00325401,96092.0,96080.0,0.00184201]
[1733171612105,0.00325401,96091.0,96080.0,0.00184201]
[1733171612292,0.00325401,96090.0,96080.0,0.00184201]
[1733171612493,0.00325401,96089.0,96080.0,0.01084201]
[1733171612737,0.00325401,96088.0,96080.0,0.00184201]
[1733171612938,0.00325401,96087.0,96080.0,0.00184201]
[1733171613140,0.00325401,96087.0,96080.0,0.00284201]
[1733171613481,0.00325401,96086.0,96080.0,0.00184201]
[1733171613683,0.00325401,96085.0,96080.0,0.00284201]
[1733171613888,0.000865,96100.0,96080.0,0.00284201]
[1733171613889,0.0052063,96099.0,96081.0,0.10284521]
[1733171614089,0.00846007,96098.0,96083.0,0.1265]
[1733171614328,0.00325386,96097.0,96084.0,0.10468703]
[1733171614618,0.00325386,96096.0,96084.0,0.10468703]
[1733171614831,0.00325386,96095.0,96084.0,0.10468703]
[1733171614970,0.00325386,96094.0,96084.0,0.10468703]
[1733171615320,0.00325386,96093.0,96085.0,0.02449013]
[1733171615471,0.00325386,96092.0,96086.0,0.10468702]
[1733171615680,0.00325386,96091.0,96086.0,0.10468702]
[1733171615878,0.00325386,96090.0,96086.0,0.10468702]
[1733171616081,0.00325386,96089.0,96086.0,0.10468702]
[1733171616311,0.000865,96100.0,96086.0,0.10468702]
[1733171616511,0.00845991,96099.0,96086.0,0.10468702]
[1733171616720,0.00325381,96098.0,96086.0,0.10568702]
[1733171616889,0.0052061,96097.0,96086.0,0.10568702]
[1733171617086,0.00845991,96096.0,96086.0,0.10668702]
[1733171617286,0.00845991,96095.0,96086.0,0.10668702]
[1733171617464,0.00325381,96094.0,96086.0,0.10668702]
[1733171617709,0.00325381,96093.0,96086.0,0.13000572]
[1733171617909,0.00325381,96092.0,96086.0,0.12900572]
[1733171618105,0.00325381,96091.0,96086.0,0.12900572]
[1733171618324,0.00325381,96090.0,96086.0,0.13000572]
[1733171618539,0.000865,96100.0,96087.0,0.10283146]
[1733171618736,0.00845982,96099.0,96088.0,0.10468687]
[1733171618886,0.00845982,96098.0,96088.0,0.10468687]
[1733171619105,0.00845982,96097.0,96088.0,0.10468687]
[1733171619329,0.00325378,96096.0,96089.0,0.0788]
[1733171619537,0.00325378,96095.0,96090.0,0.20751834]
[1733171619751,0.00325378,96094.0,96090.0,0.20751834]
[1733171619977,0.00325378,96093.0,96090.0,0.20751834]
[1733171620149,0.0008651,96095.0,96090.0,0.20751834]
[1733171620351,0.00325376,96094.0,96090.0,0.10468688]
[1733171620552,0.00325376,96093.0,96090.0,0.10468688]
[1733171620754,0.0008651,96095.0,96090.0,0.10468688]
[1733171620958,0.00325376,96094.0,96090.0,0.10468688]
[1733171621168,0.00325376,96093.0,96090.0,0.10468688]
[1733171621353,0.0008651,96095.0,96092.0,0.0472]
[1733171621556,0.00325376,96094.0,96093.0,0.10468674]
[1733171621823,0.0008651,96095.0,96093.0,0.10468674]
[1733171623027,0.0008651,96095.0,96093.0,0.10568674]
[1733171624216,0.0008651,96095.0,96093.0,0.10468674]
[1733171624419,0.0008651,96095.0,96094.0,0.03335182]
[1733171624618,0.0008651,96095.0,96094.0,0.13803857]
[1733171625685,0.0008651,96095.0,96094.0,0.13903857]
[1733171625893,0.0008651,96095.0,96094.0,0.10403857]
[1733171626349,1.412e-05,96095.0,96094.0,0.10403857]
[1733171626552,1.412e-05,96095.0,96094.0,0.13122342]
[1733171627329,1.412e-05,96095.0,96094.0,0.13022342]
[1733171627543,1.412e-05,96095.0,96094.0,0.13122342]
[1733171628048,1.412e-05,96095.0,96094.0,0.13022342]
[1733171629690,1.412e-05,96095.0,96094.0,0.32038188]
[1733171630740,1.412e-05,96095.0,96094.0,0.31938188]
[1733171631149,1.412e-05,96095.0,96094.0,0.32038188]
[1733171631338,1.412e-05,96095.0,96094.0,0.31938188]
[1733171631752,1.412e-05,96095.0,96094.0,0.32038188]
[1733171632116,1.412e-05,96095.0,96094.0,0.31938188]
[1733171632950,1.412e-05,96095.0,96094.0,0.32038188]
[1733171633944,1.412e-05,96095.0,96094.0,0.23738188]
[1733171634158,1.412e-05,96095.0,96094.0,0.10219703]
[1733171634377,1.412e-05,96095.0,96094.0,0.10119703]
[1733171634577,1.412e-05,96095.0,96094.0,0.10219703]
[1733171635005,1.412e-05,96095.0,96094.0,0.10119703]
[1733171635207,1.412e-05,96095.0,96094.0,0.12025673]
[1733171635634,0.00326775,96095.0,96094.0,0.12025673]
[1733171635840,0.20814112,96095.0,96094.0,0.10219703]
[1733171636046,0.2113948,96095.0,96094.0,0.10219703]
[1733171638104,0.0032678,96095.0,96094.0,0.10219703]
[1733171638913,0.0032678,96095.0,96094.0,0.22609703]
[1733171639123,0.0032678,96095.0,96094.0,0.24889091]
[1733171639505,1.412e-05,96095.0,96094.0,0.24889091]
[1733171640543,1.412e-05,96095.0,96094.0,0.24789091]
[1733171640748,1.412e-05,96095.0,96094.0,0.24889091]
[1733171641596,1.412e-05,96095.0,96094.0,0.24789091]
[1733171642072,1.412e-05,96095.0,96094.0,0.24889091]
[1733171643480,1.412e-05,96095.0,96094.0,0.24789091]
[1733171644346,1.412e-05,96095.0,96094.0,0.24889091]
[1733171645206,1.412e-05,96095.0,96094.0,0.0027304]
[1733171645449,0.00326764,96095.0,96094.0,0.10457561]
[1733171645640,1.412e-05,96095.0,96094.0,0.10457561]
[1733171645868,1.412e-05,96095.0,96094.0,0.10641725]
[1733171646984,1.412e-05,96095.0,96094.0,0.10557561]
[1733171647191,1.412e-05,96095.0,96094.0,0.10457561]
[1733171648028,1.412e-05,96095.0,96094.0,0.23961722]
[1733171648233,1.412e-05,96095.0,96094.0,0.23777561]
[1733171648836,1.412e-05,96095.0,96094.0,0.23677561]
[1733171649915,0.000865,96100.0,96094.0,0.23677561]
[1733171649916,0.000865,96100.0,96095.0,0.208127]
[1733171650086,0.00325342,96099.0,96096.0,0.10468682]
[1733171650305,0.000865,96100.0,96096.0,0.10468682]
[1733171650306,0.00325342,96098.0,96096.0,0.10468682]
[1733171650509,0.00325342,96097.0,96096.0,0.10468682]
[1733171651192,0.00325342,96097.0,96096.0,0.35748684]
[1733171651399,0.000865,96100.0,96097.0,0.208122]
[1733171651610,0.000865,96100.0,96099.0,0.208118]
[1733171651820,0.000865,96100.0,96099.0,0.31096321]
[1733171652233,0.000865,96100.0,96099.0,0.39376321]
[1733171652450,0.000865,96100.0,96099.0,0.4791045]
[1733171652660,0.000865,96100.0,96099.0,0.5331045]
[1733171652870,0.000865,96100.0,96099.0,0.81086202]
[1733171653156,0.000865,96100.0,96099.0,1.01086202]
[1733171655090,0.0008648,96115.0,96114.0,0.208086]
[1733171655343,0.0008648,96115.0,96114.0,0.32105381]
[1733171655764,0.0008648,96115.0,96114.0,0.36655381]
[1733171656386,0.00145256,96115.0,96114.0,0.36655381]
[1733171656600,0.00145256,96115.0,96114.0,0.22084521]
[1733171656808,0.00145256,96115.0,96096.0,0.0458]
[1733171656809,0.208118,96100.0,96090.0,0.0785]
[1733171657033,0.208126,96096.0,96095.0,0.10284521]
[1733171657238,0.00145256,96115.0,96095.0,0.10284521]
[1733171657439,0.208114,96102.0,96096.0,0.03194911]
[1733171657654,0.208114,96102.0,96097.0,0.10284521]
[1733171658292,0.208114,96101.0,96097.0,0.10284521]
[1733171658746,0.208114,96101.0,96097.0,0.10384521]
[1733171659214,0.208106,96105.0,96097.0,0.10384521]
[1733171659432,0.00325346,96104.0,96099.0,0.0496]
[1733171659654,0.00145256,96115.0,96103.0,0.0819]
[1733171659906,0.00325309,96114.0,96111.0,0.208091]
[1733171660107,0.00145256,96115.0,96112.0,0.11984121]
[1733171660314,0.00145256,96115.0,96113.0,0.03291443]
[1733171660526,0.00145256,96115.0,96114.0,0.10284521]
[1733171660766,0.00145256,96115.0,96114.0,0.10468651]
[1733171661821,0.00145256,96115.0,96114.0,0.10568651]
[1733171662035,0.00145256,96115.0,96114.0,0.23278651]
[1733171662240,0.00145256,96115.0,96114.0,0.26005277]
[1733171662647,0.00145256,96115.0,96114.0,0.26105277]
[1733171663817,0.00145256,96115.0,96114.0,0.26005277]
[1733171664197,0.00445256,96115.0,96114.0,0.26205277]
[1733171664395,0.00445256,96115.0,96114.0,0.26105277]
[1733171664870,0.00745256,96115.0,96114.0,0.26205277]
[1733171670500,0.00745256,96115.0,96114.0,0.26105277]
[1733171670929,0.00145256,96115.0,96114.0,0.26005277]
[1733171671331,0.00445256,96115.0,96114.0,0.26105277]
[1733171672329,0.00445256,96115.0,96114.0,0.66105277]
[1733171672495,0.00145256,96115.0,96114.0,0.66005277]
[1733171672920,0.00445256,96115.0,96114.0,0.66105277]
[1733171684216,0.00445256,96115.0,96114.0,0.41435277]
[1733171688221,0.00445256,96115.0,96114.0,0.33395277]
[1733171693698,0.00445256,96115.0,96114.0,0.36618996]
[1733171694324,0.00445256,96115.0,96114.0,0.56618996]
[1733171694530,0.00445256,96115.0,96114.0,0.69398996]
[1733171695026,0.00445256,96115.0,96114.0,0.16618996]
[1733171695234,0.00445256,96115.0,96114.0,0.001]
[1733171695442,0.23530541,96115.0,96114.0,0.001]
[1733171695642,0.24051011,96115.0,96114.0,0.001]
[1733171696011,0.24051011,96115.0,96102.0,0.01]
[1733171696012,0.35811,96103.0,96102.0,0.01]
[1733171696247,0.43896285,96103.0,96102.0,0.01]
[1733171696452,0.48666023,96103.0,96102.0,0.01]
[1733171696663,0.48666023,96103.0,96080.0,0.0017302]
[1733171696664,0.15,96102.0,96080.0,0.0017302]
[1733171696866,0.48666023,96103.0,96080.0,0.0017302]
[1733171696867,0.3632085,96101.0,96080.0,0.0017302]
[1733171697088,0.36136685,96101.0,96080.0,0.0017302]
[1733171698993,0.36836685,96101.0,96100.0,0.0027304]
[1733171699193,0.37736685,96101.0,96100.0,0.0037304]
[1733171701319,0.43597485,96101.0,96100.0,0.0037304]
[1733171704988,0.432722,96101.0,96100.0,0.0037304]
[1733171711033,0.374114,96101.0,96100.0,0.0037304]
[1733171713535,0.224114,96101.0,96100.0,0.10657561]
[1733171713743,0.016,96101.0,96100.0,0.10657561]
[1733171716815,0.016,96101.0,96100.0,0.0037304]
[1733171717442,0.01784165,96101.0,96100.0,0.0037304]
[1733171717660,0.02783465,96101.0,96100.0,0.0037304]
[1733171717914,0.27009449,96101.0,96100.0,0.0037304]
[1733171718151,0.26825284,96101.0,96100.0,0.0037304]
[1733171719112,0.025993,96101.0,96100.0,0.0037304]
[1733171719361,0.02783465,96101.0,96100.0,0.0037304]
[1733171719639,0.025993,96101.0,96100.0,0.0037304]
[1733171719842,0.01925329,96101.0,96100.0,0.0037304]
[1733171720022,0.02109494,96101.0,96100.0,0.0037304]
[1733171721742,0.01925329,96101.0,96100.0,0.0037304]
[1733171721959,0.02109494,96101.0,96100.0,0.0037304]
[1733171723056,0.01925329,96101.0,96100.0,0.0037304]
[1733171723261,0.02109494,96101.0,96100.0,0.0037304]
[1733171724139,0.09773162,96101.0,96100.0,0.0037304]
[1733171724358,0.09447833,96101.0,96100.0,0.0037304]
[1733171724571,0.09773161,96101.0,96100.0,0.0037304]
[1733171724984,0.37828153,96101.0,96100.0,0.0037304]
[1733171725192,0.38164517,96101.0,96100.0,0.0037304]
[1733171726772,0.3731866,96101.0,96100.0,0.0037304]
[1733171728115,0.3681866,96101.0,96100.0,0.0037304]
[1733171728326,0.3681866,96101.0,96054.0,0.0008656]
[1733171728327,0.358127,96095.0,96094.0,2e-07]
[1733171728546,0.46097221,96095.0,96094.0,2e-07]
[1733171728752,0.358157,96081.0,96055.0,0.0784]
[1733171728969,0.37552311,96081.0,96055.0,0.0784]
[1733171729236,0.36055177,96081.0,96055.0,0.0784]
[1733171729456,0.37552368,96081.0,96055.0,0.0784]
[1733171729673,0.37552368,96081.0,96056.0,0.0018424]
[1733171729882,0.37312891,96081.0,96056.0,0.0018424]
[1733171730101,0.3732512,96081.0,96056.0,0.0018424]
[1733171730532,0.4524452,96081.0,96056.0,0.0018424]
[1733171730750,0.4544452,96081.0,96055.0,0.0784]
[1733171731463,0.44793567,96081.0,96055.0,0.0784]
[1733171731681,0.44593567,96081.0,96080.0,0.0027302]
[1733171731894,0.45493567,96081.0,96080.0,0.0037302]
[1733171732108,0.45493572,96081.0,96080.0,0.0037302]
[1733171732323,0.46144529,96081.0,96080.0,0.0037302]
[1733171732543,0.45493572,96081.0,96080.0,0.0037302]
[1733171733861,0.53423572,96081.0,96080.0,0.0037302]
[1733171734576,0.68568093,96081.0,96080.0,2e-07]
[1733171734799,0.68568093,96081.0,96078.0,6e-07]
[1733171734800,0.358162,96079.0,96078.0,6e-07]
[1733171735027,0.722782,96079.0,96078.0,6e-07]
[1733171735240,0.72954067,96079.0,96078.0,6e-07]
[1733171736122,0.73154067,96079.0,96078.0,6e-07]
[1733171737005,1.05994067,96079.0,96078.0,6e-07]
[1733171742211,1.05994067,96079.0,96078.0,8e-07]
[1733171742651,0.208214,96055.0,96054.0,0.0008656]
[1733171742854,0.358214,96055.0,96054.0,0.0008656]
[1733171743084,0.36342165,96055.0,96054.0,0.0008656]
[1733171743297,0.36667643,96055.0,96054.0,0.0008656]
[1733171743920,0.37367643,96055.0,96054.0,0.0008656]
[1733171744127,0.45333643,96055.0,96054.0,0.0008656]
[1733171744337,0.46233643,96055.0,96054.0,0.0008656]
[1733171746065,0.38267643,96055.0,96054.0,0.0008656]
[1733171747349,0.389186,96055.0,96054.0,0.0008656]
[1733171747572,0.38267643,96055.0,96054.0,0.0008656]
[1733171747790,0.389186,96055.0,96054.0,0.0008656]
[1733171748013,0.38267643,96055.0,96054.0,0.0008656]
[1733171748255,0.469746,96055.0,96054.0,0.0008656]
[1733171749320,0.46974985,96055.0,96054.0,0.0008656]
[1733171752601,0.38918985,96055.0,96054.0,0.0008656]
[1733171752822,0.38918985,96055.0,96054.0,0.0833656]
[1733171753468,0.39149695,96055.0,96054.0,0.0833656]
[1733171753913,0.38918985,96055.0,96054.0,0.05992529]
[1733171754854,0.38918985,96055.0,96054.0,0.06079059]
[1733171756172,0.3774696,96055.0,96054.0,0.06079059]
[1733171756391,0.38918976,96055.0,96054.0,0.06079059]
[1733171760438,0.47391654,96055.0,96054.0,0.0008653]
[1733171761180,0.47391654,96055.0,96049.0,0.0017302]
[1733171761181,0.358224,96050.0,96049.0,0.0017302]
[1733171761391,0.358224,96050.0,96040.0,4e-07]
[1733171761392,0.358244,96041.0,96040.0,4e-07]
[1733171761611,0.56327135,96041.0,96040.0,4e-07]
[1733171761819,0.56978255,96041.0,96040.0,4e-07]
[1733171762518,0.56989863,96041.0,96040.0,4e-07]
[1733171763151,0.57089863,96041.0,96040.0,4e-07]
[1733171764449,0.57189863,96041.0,96040.0,0.0010004]
[1733171765358,0.56989863,96041.0,96040.0,4e-07]
[1733171765784,0.57189863,96041.0,96040.0,4e-07]
[1733171766229,0.56989863,96041.0,96040.0,4e-07]
[1733171766454,0.58374346,96041.0,96040.0,4e-07]
[1733171766685,0.58474346,96041.0,96040.0,4e-07]
[1733171767347,0.58474346,96041.0,96021.0,0.0017302]
[1733171767348,0.15,96040.0,96021.0,0.0017302]
[1733171767623,0.358285,96022.0,96021.0,0.0017302]
[1733171767847,0.37326076,96022.0,96021.0,0.0017302]
[1733171768947,0.208305,96013.0,96012.0,0.06084613]
[1733171769175,0.2148162,96013.0,96012.0,0.06084613]
[1733171769395,0.2148162,96013.0,96012.0,0.06747251]
[1733171769396,0.22557025,96013.0,96012.0,0.06747251]
[1733171769614,0.37557025,96013.0,96012.0,0.06084613]
[1733171769825,0.37557025,96013.0,96012.0,0.06747251]
[1733171770039,0.37328076,96013.0,96012.0,0.06084613]
[1733171770246,0.37328076,96013.0,96012.0,0.06747251]
[1733171770457,0.37328076,96013.0,96012.0,0.05584613]
[1733171770870,0.43866668,96013.0,96012.0,0.05684613]
[1733171771296,0.42369092,96013.0,96012.0,0.05684613]
[1733171771514,0.42369092,96013.0,96012.0,0.001]
[1733171772140,0.42694776,96013.0,96012.0,0.001]
[1733171772349,0.43867238,96013.0,96012.0,0.001]
[1733171772650,0.44812486,96013.0,96012.0,0.001]
[1733171774191,0.46196969,96013.0,96012.0,0.001]
[1733171776388,0.44698823,96013.0,96012.0,0.001]
[1733171777566,0.45898548,96013.0,96012.0,0.001]
[1733171777779,0.46224278,96013.0,96012.0,0.001]
[1733171779655,0.44839795,96013.0,96012.0,0.0018659]
[1733171779920,0.45012975,96013.0,96012.0,0.0018659]
[1733171781071,0.45216787,96013.0,96012.0,0.0018659]
[1733171781293,0.44516787,96013.0,96012.0,0.0008659]
[1733171781516,0.45212975,96013.0,96012.0,0.0018659]
[1733171781736,0.63787496,96013.0,96012.0,0.0018659]
[1733171782413,0.62887496,96013.0,96012.0,0.0018659]
[1733171782638,0.63787496,96013.0,96012.0,0.0018659]
[1733171783484,0.65171979,96013.0,96012.0,0.0018659]
[1733171783715,0.63787496,96013.0,96012.0,0.0018659]
[1733171783921,0.358335,95999.0,95987.0,0.0753]
[1733171784140,0.42346949,95999.0,95987.0,0.0753]
[1733171784352,0.42419292,95999.0,95987.0,0.0753]
[1733171784575,0.36680399,95999.0,95987.0,0.0753]
[1733171784785,0.36680399,95999.0,95998.0,0.139225]
[1733171785221,0.36680399,95999.0,95998.0,0.147565]
[1733171785648,0.37580399,95999.0,95998.0,0.147565]
[1733171787218,0.38080399,95999.0,95998.0,0.147565]
[1733171787638,0.46120095,95999.0,95998.0,0.147565]
[1733171788088,0.02246899,95999.0,95998.0,0.147565]
[1733171788302,0.014,95999.0,95998.0,0.24265768]
[1733171788515,0.014,95999.0,95998.0,0.25040275]
[1733171789174,0.014,95999.0,95998.0,0.45040275]
[1733171789596,0.208284,96023.0,96009.0,0.208311]
[1733171789819,0.21478876,96027.0,96012.0,0.1224]
[1733171790029,0.0052102,96026.0,96012.0,0.22708839]
[1733171790254,0.208282,96024.0,96012.0,0.22524521]
[1733171790465,0.20829,96020.0,96012.0,0.23295049]
[1733171791376,0.0037318,96013.0,96012.0,0.23295049]
[1733171791816,0.0037318,96013.0,96012.0,0.33578195]
[1733171792033,0.0067318,96013.0,96012.0,0.33664715]
[1733171792500,0.0037318,96013.0,96012.0,0.33664715]
[1733171792711,0.0077318,96013.0,96012.0,0.33664715]
[1733171796869,0.2160368,96013.0,96012.0,0.23381569]
[1733171797075,0.2160368,96013.0,96012.0,0.13097048]
[1733171798591,0.0077318,96013.0,96012.0,0.23381569]
[1733171798807,0.0077318,96013.0,96012.0,0.44212269]
[1733171799020,0.0077318,96013.0,96012.0,0.33664715]
[1733171799882,0.0077318,96013.0,96012.0,0.54495415]
[1733171800311,0.0077318,96013.0,96012.0,0.33664715]
[1733171802711,0.00618608,96013.0,96012.0,0.33664715]
[1733171804662,0.00618608,96013.0,96012.0,0.53664715]
[1733171805091,0.00618608,96013.0,96012.0,0.33664715]
[1733171805349,0.00618608,96013.0,96012.0,0.23381569]
[1733171806057,0.00618608,96013.0,96012.0,0.11141569]
[1733171811143,0.00802773,96013.0,96012.0,0.00857048]
[1733171811373,0.01128452,96013.0,96012.0,0.00857048]
[1733171811616,0.21215387,96013.0,96012.0,0.00857048]
[1733171811856,0.21215387,96013.0,96012.0,0.0008652]
[1733171812097,0.21736512,96013.0,96012.0,0.0008652]
[1733171812589,0.21836512,96013.0,96012.0,0.0008652]
[1733171812840,0.21452347,96013.0,96012.0,0.0008652]
[1733171813089,0.21136512,96013.0,96012.0,0.0008652]
[1733171813301,0.21636512,96013.0,96012.0,0.0018652]
[1733171813536,0.21636512,96013.0,96012.0,0.0008652]
[1733171813537,0.22536512,96013.0,96012.0,0.0008652]
[1733171813747,0.21852347,96013.0,96012.0,0.0008652]
[1733171813989,0.22752347,96013.0,96012.0,0.0018652]
[1733171819371,0.17665412,96013.0,96012.0,0.0018652]
[1733171820849,0.17144287,96013.0,96012.0,0.0018652]
[1733171822346,0.17328452,96013.0,96012.0,0.0018652]
[1733171822607,0.1784956,96013.0,96012.0,0.0018652]
[1733171824442,0.17775815,96013.0,96012.0,0.0018652]
[1733171825072,0.1759165,96013.0,96012.0,0.0018652]
[1733171825523,0.23766098,96013.0,96012.0,0.0018652]
[1733171825743,0.23581933,96013.0,96012.0,0.0018652]
[1733171825953,0.17321108,96013.0,96012.0,0.0018652]
[1733171826163,0.17505273,96013.0,96012.0,0.0018652]
[1733171826376,0.17678313,96013.0,96012.0,0.0018652]
[1733171826595,0.17157205,96013.0,96012.0,0.0018652]
[1733171827039,0.17678313,96013.0,96012.0,0.0018652]
[1733171827905,0.17494148,96013.0,96012.0,0.0018652]
[1733171828506,0.23658846,96013.0,96012.0,0.0018652]
[1733171828720,0.23474681,96013.0,96012.0,0.0018652]
[1733171832442,0.23469652,96013.0,96012.0,0.0018652]
[1733171832916,0.17489119,96013.0,96012.0,0.0018652]
[1733171833126,0.17152176,96013.0,96012.0,0.00154406]
[1733171833349,0.17673284,96013.0,96012.0,0.00154406]
[1733171833980,0.17489119,96013.0,96012.0,0.00154406]
[1733171834386,0.17673284,96013.0,96012.0,0.00154406]
[1733171834817,0.17489119,96013.0,96012.0,0.00154406]
[1733171835455,0.18140504,96013.0,96012.0,0.00154406]
[1733171836273,0.18466196,96013.0,96012.0,0.00154406]
[1733171837170,0.22584175,96013.0,96012.0,0.00154406]
[1733171837401,0.2240001,96013.0,96012.0,0.00154406]
[1733171837636,0.03471225,96013.0,96012.0,0.00154406]
[1733171837839,0.03471225,96013.0,95999.0,0.0008653]
[1733171837840,0.208333,96000.0,95999.0,0.0008653]
[1733171838045,0.21158992,96000.0,95999.0,0.0008653]
[1733171838258,0.26549156,96000.0,95999.0,0.0008653]
[1733171838925,0.41549156,96000.0,95999.0,0.0008653]
[1733171839349,0.42149156,96000.0,95999.0,0.0018653]
[1733171840010,0.43049156,96000.0,95999.0,0.0018653]
[1733171840851,0.51279156,96000.0,95999.0,0.0018653]
[1733171841956,0.50679156,96000.0,95999.0,0.0008653]
[1733171842403,0.51579156,96000.0,95999.0,0.0008653]
[1733171842820,0.50679156,96000.0,95999.0,0.0008653]
[1733171843058,0.51579156,96000.0,95999.0,0.0008653]
[1733171843477,0.15,95999.0,95998.0,7.7e-07]
[1733171843696,0.4450294,95999.0,95998.0,7.7e-07]
[1733171843913,0.44716637,95999.0,95998.0,7.7e-07]
[1733171844130,0.45368147,95999.0,95998.0,7.7e-07]
[1733171845862,0.46268147,95999.0,95998.0,7.7e-07]
[1733171846070,0.47168147,95999.0,95998.0,7.7e-07]
[1733171846768,0.4716868,95999.0,95998.0,7.7e-07]
[1733171847860,0.28581989,95999.0,95998.0,7.7e-07]
[1733171848075,0.17647172,95999.0,95998.0,7.7e-07]
[1733171848293,0.17831337,95999.0,95998.0,7.7e-07]
[1733171848708,0.02647172,95999.0,95998.0,0.00086597]
[1733171848926,0.02831337,95999.0,95998.0,0.00086597]
[1733171849570,0.09364351,95999.0,95998.0,0.00086597]
[1733171849999,0.17831337,95999.0,95998.0,0.00086597]
[1733171850214,0.1731,95999.0,95998.0,0.00086597]
[1733171851102,0.17125835,95999.0,95998.0,0.12646597]
[1733171851370,0.1731,95999.0,95998.0,0.12646597]
[1733171851808,0.17125835,95999.0,95998.0,0.12646597]
[1733171860077,0.17298895,95999.0,95998.0,0.12646597]
[1733171867572,0.17298793,95999.0,95998.0,0.12646597]
[1733171869119,0.17819982,95999.0,95998.0,0.12646597]